bitfinex-derivatives/quotes_SOLF0:USTF0_20241002
["timestamp","ask_amount","ask_price","bid_price","bid_amount"]
[1727861508545,3.4,147.08,147.01,13.06]
[1727861508746,17.94,147.1,147.01,13.06]
[1727861508948,17.94,147.1,147.05,3.4006]
[1727861509154,3.4001,147.08,147.05,3.4006]
[1727861510348,3.4001,147.08,147.06,3.4004]
[1727861511043,17.94,147.1,147.06,3.4004]
[1727861511234,17.94,147.1,147.02,13.06]
[1727861511235,4.88,147.1,147.02,13.06]
[1727861511443,0.12502,147.11,147.04,13.06]
[1727861511642,5.00502,147.11,147.09,3.3996]
[1727861512149,5.00502,147.11,147.04,13.06]
[1727861512743,0.12502,147.11,147.1,3.3995]
[1727861514449,4.98,147.15,147.14,3.3985]
[1727861515145,0.12502,147.17,147.16,3.3981]
[1727861518855,3.52292,147.17,147.1,18.04]
[1727861519950,3.3984,147.15,147.09,4.98]
[1727861520255,13.06,147.16,147.09,4.98]
[1727861520451,16.4582,147.16,147.13,3.3988]
[1727861521257,3.52312,147.17,147.14,3.3984]
[1727861521457,0.12502,147.17,147.08,18.04]
[1727861521657,13.06,147.16,147.07,8.8173]
[1727861521858,3.3989,147.13,147.1,3.3994]
[1727861522748,3.3989,147.13,147.11,3.3992]
[1727861523060,3.3987,147.14,147.11,3.3992]
[1727861524655,4.98,147.15,147.13,3.3988]
[1727861524856,4.98,147.15,147.08,13.06]
[1727861525554,0.12502,147.17,147.08,13.06]
[1727861525952,4.98,147.16,147.08,13.06]
[1727861526162,0.12502,147.17,147.1,13.06]
[1727861527153,3.52302,147.17,147.1,13.06]
[1727861527361,3.52302,147.17,147.14,3.3984]
[1727861527761,0.12502,147.17,147.1,13.06]
[1727861527956,0.12502,147.17,147.15,3.3982]
[1727861528464,0.12502,147.17,147.16,3.3981]
[1727861529360,0.12502,147.17,147.15,3.3983]
[1727861529862,0.12502,147.17,147.1,13.06]
[1727861530057,0.12502,147.17,147.14,3.3984]
[1727861530058,3.52302,147.17,147.14,3.3984]
[1727861530466,3.3984,147.16,147.12,3.399]
[1727861530666,3.3984,147.16,147.08,13.06]
[1727861530961,3.3984,147.16,147.13,3.3986]
[1727861531157,3.3984,147.16,147.08,13.06]
[1727861531357,3.52302,147.17,147.08,13.06]
[1727861531963,3.52302,147.17,147.14,3.3984]
[1727861532164,3.52302,147.17,147.08,13.06]
[1727861532369,0.12502,147.17,147.08,16.43060125]
[1727861532664,0.12502,147.17,147.16,3.3981]
[1727861532861,3.52292,147.17,147.1,13.06]
[1727861533167,3.52292,147.17,147.14,3.3984]
[1727861533465,0.12502,147.17,147.1,13.06]
[1727861533665,0.12502,147.17,147.08,6.7997]
[1727861533666,13.18502,147.17,147.08,19.8597]
[1727861533863,13.18502,147.17,147.09,4.98]
[1727861534063,13.06,147.16,147.11,3.3991]
[1727861534265,13.06,147.16,147.07,3.8373]
[1727861534465,13.06,147.14,147.07,3.8373]
[1727861534662,3.3991,147.12,147.07,3.8373]
[1727861534962,13.06,147.14,147.07,3.8373]
[1727861535165,3.3994,147.11,147.07,2.5285]
[1727861535369,3.3994,147.11,147.07,1.2701]
[1727861535665,21.4392,147.12,147.07,1.2701]
[1727861536058,21.4392,147.12,147.09,3.3996]
[1727861536269,18.04,147.12,147.09,3.3996]
[1727861536463,3.3993,147.11,147.07,1.2701]
[1727861536679,18.04,147.12,147.08,3.3999]
[1727861537061,3.3996,147.1,147.05,0.12502]
[1727861537262,3.3996,147.1,147.07,3.4001]
[1727861537570,3.3994,147.11,147.05,0.12502]
[1727861537771,3.3994,147.11,147.08,3.3998]
[1727861538471,18.04,147.12,147.05,0.12502]
[1727861539166,3.3995,147.1,147.05,0.12502]
[1727861540165,18.04,147.12,147.08,3.3998]
[1727861540671,3.3994,147.11,147.08,3.3998]
[1727861542467,4.98,147.13,147.1,3.3993]
[1727861542668,4.98,147.13,147.05,0.12502]
[1727861542868,4.98,147.13,147.05,1.45942]
[1727861543269,13.06,147.14,147.05,1.45942]
[1727861543475,13.06,147.15,147.06,18.04]
[1727861543770,4.98,147.16,147.08,13.06]
[1727861543965,4.98,147.16,147.09,7.6557]
[1727861544875,8.3781,147.16,147.09,7.6557]
[1727861545374,4.98,147.16,147.14,3.3984]
[1727861545677,4.98,147.16,147.09,7.6557]
[1727861546674,4.98,147.16,147.14,3.3984]
[1727861546874,3.3984,147.15,147.09,7.6557]
[1727861547073,4.98,147.16,147.09,7.6557]
[1727861547271,4.98,147.16,147.11,3.3993]
[1727861547466,7.86145393,147.15,147.09,7.6557]
[1727861547664,3.3984,147.15,147.09,7.6557]
[1727861547862,4.98,147.16,147.11,3.3991]
[1727861548070,3.3987,147.14,147.11,3.3991]
[1727861548265,4.98,147.16,147.09,7.6557]
[1727861548465,4.46316854,147.15,147.09,7.6557]
[1727861548673,8.3782,147.16,147.09,7.6557]
[1727861549075,8.3782,147.16,147.13,3.3987]
[1727861549477,4.98,147.16,147.15,3.3983]
[1727861549672,9.44189503,147.16,147.1,13.06]
[1727861549873,4.98,147.16,147.1,13.06]
[1727861550275,4.98,147.16,147.15,3.3984]
[1727861551079,3.3989,147.13,147.1,3.3994]
[1727861551279,18.04,147.16,147.09,2.6757]
[1727861551588,4.46133225,147.15,147.09,2.6757]
[1727861551884,3.3992,147.12,147.09,6.0753]
[1727861552281,3.3992,147.12,147.1,3.3995]
[1727861552478,3.3992,147.12,147.09,2.6757]
[1727861552682,3.3989,147.13,147.09,2.6757]
[1727861552980,3.3989,147.13,147.1,3.3994]
[1727861553377,18.04,147.16,147.1,3.3994]
[1727861553584,3.3991,147.12,147.1,3.3994]
[1727861553781,18.04,147.13,147.06,1.3879]
[1727861553977,3.3996,147.1,147.05,0.12502]
[1727861554373,18.04,147.11,147.05,0.12502]
[1727861554776,3.3996,147.1,147.07,3.4]
[1727861554979,3.3996,147.1,147.05,0.12502]
[1727861554980,18.04,147.11,147.05,0.12502]
[1727861555181,4.98,147.11,147.05,0.12502]
[1727861555388,4.98,147.11,147.09,3.3997]
[1727861555779,4.98,147.11,147.05,0.12502]
[1727861556083,4.98,147.11,147.1,3.3995]
[1727861556287,4.98,147.11,147.05,0.12502]
[1727861556288,3.3997,147.1,147.05,0.12502]
[1727861556489,18.04,147.11,147.07,3.4001]
[1727861556688,18.04,147.11,147.05,0.12502]
[1727861556992,3.3996,147.1,147.05,0.12502]
[1727861557287,18.04,147.11,147.05,0.12502]
[1727861557481,3.4001,147.08,147.05,0.12502]
[1727861557893,18.04,147.11,147.05,0.12502]
[1727861557894,18.04,147.11,147.05,3.52552]
[1727861558078,4.4602971,147.1,147.05,3.52552]
[1727861558284,18.04,147.11,147.05,3.52552]
[1727861558480,18.04,147.11,147.05,0.12502]
[1727861558691,13.06,147.07,147.05,0.12502]
[1727861558884,4.98,147.06,147.05,0.12502]
[1727861560588,3.4003,147.07,147.05,0.12502]
[1727861560885,4.98,147.06,147.05,0.12502]
[1727861561293,13.06,147.09,147.05,0.12502]
[1727861561484,13.06,147.11,147.05,0.12502]
[1727861561787,4.45910009,147.1,147.05,0.12502]
[1727861562091,8.3793,147.11,147.08,3.3998]
[1727861563293,4.98,147.11,147.1,3.3995]
[1727861565692,4.98,147.11,147.05,18.16502]
[1727861567093,4.98,147.11,147.1,3.3995]
[1727861567392,9.44312974,147.11,147.1,3.3995]
[1727861567879,4.98,147.11,147.1,3.3995]
[1727861568087,8.3787,147.14,147.11,3.3992]
[1727861568393,4.46351413,147.13,147.07,13.06]
[1727861568582,4.46351413,147.12,147.09,13.06]
[1727861568895,18.16502,147.17,147.09,13.06]
[1727861569193,3.3985,147.15,147.08,8.8854]
[1727861569390,4.46430465,147.14,147.08,8.8854]
[1727861569693,4.46430465,147.13,147.08,8.8854]
[1727861569989,4.46430465,147.13,147.11,3.3992]
[1727861570190,4.46430465,147.13,147.08,8.8854]
[1727861570395,3.3984,147.15,147.08,8.8854]
[1727861570698,4.46456411,147.14,147.12,3.3989]
[1727861570897,4.46456411,147.13,147.12,3.3989]
[1727861571089,4.46456411,147.14,147.09,3.3996]
[1727861571292,4.46456411,147.13,147.09,13.06]
[1727861571593,5.10502,147.17,147.09,13.06]
[1727861571794,4.46506078,147.16,147.14,3.3984]
[1727861571994,4.46506078,147.15,147.14,3.3984]
[1727861574486,4.46698092,147.15,147.14,3.3984]
[1727861574693,8.50292,147.17,147.14,3.3984]
[1727861574991,4.46697793,147.15,147.14,3.3984]
[1727861575797,8.93395586,147.15,147.14,3.3984]
[1727861576195,8.93395586,147.15,147.09,13.06]
[1727861576391,4.46725386,147.14,147.13,3.3987]
[1727861577998,4.46697793,147.15,147.14,3.3986]
[1727861578195,8.93473477,147.15,147.14,3.3986]
[1727861580902,8.93576841,147.15,147.14,3.3986]
[1727861581395,8.93576841,147.15,147.12,3.3989]
[1727861581396,12.33426841,147.15,147.12,3.3989]
[1727861581595,4.46879048,147.14,147.12,3.3989]
[1727861581798,4.46879048,147.14,147.11,8.36]
[1727861582001,7.86749048,147.14,147.08,8.8854]
[1727861582196,12.83168738,147.13,147.08,3.9054]
[1727861582397,12.83168738,147.12,147.06,8.36]
[1727861582702,7.8717165,147.11,147.06,8.36]
[1727861583000,3.3994,147.11,147.06,8.36]
[1727861583210,8.36,147.1,147.08,3.3998]
[1727861583402,8.36,147.1,147.06,8.36]
[1727861584405,8.36,147.1,147.09,3.3997]
[1727861584703,8.36,147.12,147.08,8.36]
[1727861584898,8.36,147.12,147.05,5.18502]
[1727861584899,4.47479096,147.11,147.09,8.36]
[1727861585095,13.42,147.13,147.09,8.36]
[1727861585295,4.47493416,147.12,147.09,8.36]
[1727861585497,4.47493416,147.11,147.1,3.3995]
[1727861585807,4.47493416,147.11,147.07,13.06]
[1727861586008,8.4588,147.13,147.1,3.3993]
[1727861586205,4.47555081,147.12,147.1,3.3993]
[1727861586506,8.4588,147.13,147.1,3.3993]
[1727861586702,8.4588,147.13,147.07,13.06]
[1727861586703,13.06,147.16,147.07,13.06]
[1727861586906,4.47569221,147.12,147.09,13.06]
[1727861587108,5.06,147.15,147.09,13.06]
[1727861587306,4.47469005,147.14,147.12,3.3989]
[1727861587501,4.47469005,147.13,147.12,3.3989]
[1727861589805,5.06,147.15,147.13,3.3987]
[1727861590105,4.47348396,147.14,147.13,3.3987]
[1727861591902,5.06,147.15,147.13,3.3987]
[1727861592102,4.47419014,147.14,147.1,18.12]
[1727861592514,4.47419014,147.13,147.1,18.12]
[1727861592708,3.3983,147.16,147.13,3.3986]
[1727861592907,4.47326299,147.15,147.13,3.3986]
[1727861593107,3.3983,147.16,147.1,18.12]
[1727861593901,4.4731301,147.15,147.13,3.3987]
[1727861594113,4.4731301,147.14,147.07,18.12]
[1727861594302,4.4731301,147.13,147.07,18.12]
[1727861594512,3.3987,147.14,147.11,3.3991]
[1727861594704,4.47187926,147.13,147.11,3.3991]
[1727861594908,3.3987,147.14,147.11,3.3991]
[1727861595109,7.87062728,147.13,147.11,3.3991]
[1727861595410,4.47182728,147.12,147.11,3.3991]
[1727861596115,7.87082728,147.12,147.07,18.12]
[1727861596318,13.06,147.13,147.06,3.9128]
[1727861596626,13.06,147.13,147.05,0.12502]
[1727861596627,3.3999,147.09,147.05,0.12502]
[1727861596827,5.06,147.14,147.05,0.12502]
[1727861596828,13.06,147.11,147.05,0.12502]
[1727861597125,13.06,147.11,147.06,3.4004]
[1727861597126,9.53129959,147.1,147.06,3.4004]
[1727861597425,4.47129959,147.09,147.06,3.4004]
[1727861597632,5.06,147.1,147.06,3.4004]
[1727861597928,4.47112956,147.09,147.06,3.4004]
[1727861598130,3.3998,147.09,147.06,3.4004]
[1727861598727,3.4001,147.08,147.05,3.52562]
[1727861598930,5.06,147.1,147.05,0.12502]
[1727861599226,3.4003,147.07,147.05,0.12502]
[1727861599435,13.06,147.07,147.05,0.12502]
[1727861599625,5.06,147.06,147.05,0.12502]
[1727861599934,12.93102971,147.06,147.05,0.12502]
[1727861600130,4.47062971,147.06,147.05,0.12502]
[1727861600427,5.06,147.06,147.05,0.12502]
[1727861600826,5.06,147.06,147.05,3.52572]
[1727861601123,13.06,147.1,147.05,0.12502]
[1727861601320,12.92981786,147.09,147.06,3.4003]
[1727861601525,4.47001786,147.08,147.05,0.12502]
[1727861602547,5.06,147.09,147.05,0.12502]
[1727861602727,5.06,147.09,147.07,3.4002]
[1727861602932,4.47043808,147.08,147.07,3.4002]
[1727861603333,5.04,147.11,147.05,0.12502]
[1727861603635,4.47061206,147.1,147.05,0.12502]
[1727861603833,4.47061206,147.09,147.05,0.12502]
[1727861604033,3.3996,147.1,147.06,3.4003]
[1727861604236,4.47154126,147.09,147.06,3.4003]
[1727861604530,3.3999,147.09,147.06,3.4003]
[1727861607426,4.47235315,147.08,147.07,3.4002]
[1727861607631,3.3995,147.1,147.07,3.4002]
[1727861607831,4.47238264,147.09,147.07,3.4002]
[1727861608031,5.04,147.11,147.05,0.12502]
[1727861608238,3.4002,147.07,147.05,0.12502]
[1727861609035,13.06,147.1,147.05,0.12502]
[1727861609235,3.4,147.08,147.05,3.52562]
[1727861609432,13.06,147.1,147.05,3.52562]
[1727861609627,4.47408051,147.09,147.05,3.52562]
[1727861609829,4.47408051,147.08,147.05,3.52562]
[1727861610034,13.06,147.1,147.05,0.12502]
[1727861610339,3.4,147.08,147.05,0.12502]
[1727861610540,13.06,147.1,147.05,0.12502]
[1727861610740,4.47429992,147.09,147.05,0.12502]
[1727861610941,3.4003,147.07,147.05,0.12502]
[1727861611237,5.04,147.07,147.05,0.12502]
[1727861611439,7.87355178,147.06,147.05,0.12502]
[1727861612640,3.4004,147.06,147.05,0.12502]
[1727861612842,7.87269955,147.06,147.05,0.12502]
[1727861615235,4.47229955,147.06,147.05,0.12502]
[1727861615431,8.4403,147.07,147.05,0.12502]
[1727861615839,7.87254525,147.06,147.05,0.12502]
[1727861616229,3.4004,147.06,147.05,0.12502]
[1727861618136,20.92943287,147.06,147.05,1e-08]
[1727861618539,16.4604,147.06,147.05,1e-08]
[1727861618938,20.92937586,147.06,147.05,1e-08]
[1727861620234,20.92937586,147.06,146.99,0.12502]
[1727861620235,3.4018,147.0,146.99,0.12502]
[1727861620437,3.4018,147.0,146.94,3.4032]
[1727861620438,18.12,147.0,146.94,3.4032]
[1727861620638,18.12,147.0,146.93,0.12502]
[1727861620843,21.44991755,147.0,146.93,0.12502]
[1727861621047,3.4027,146.97,146.94,3.4031]
[1727861621239,5.06,146.96,146.94,3.4031]
[1727861622036,8.4628,146.96,146.94,3.4031]
[1727861622246,5.06,146.96,146.94,3.4031]
[1727861622635,5.06,146.96,146.94,3.403]
[1727861622946,1.12502,147.05,146.93,0.12502]
[1727861623249,9.5192878,147.04,146.96,13.06]
[1727861623546,0.12502,147.05,146.97,2.7853]
[1727861623740,5.06,147.04,146.98,1.3828]
[1727861624042,5.06,147.04,147.02,3.4012]
[1727861624645,0.12502,147.05,147.02,3.4012]
[1727861624945,5.18502,147.05,147.02,3.4012]
[1727861625152,8.58582,147.05,147.02,3.4012]
[1727861625647,5.18502,147.05,146.98,1.3828]
[1727861625849,3.4009,147.04,147.01,3.4015]
[1727861626245,5.18502,147.05,146.98,1.3828]
[1727861626448,18.24502,147.05,146.99,3.4019]
[1727861626657,4.45573751,147.04,146.99,3.4019]
[1727861626952,7.85680289,147.03,147.0,3.4018]
[1727861627250,3.4013,147.03,146.97,2.7853]
[1727861627644,3.4013,147.03,147.0,3.4017]
[1727861629556,5.06,147.04,147.02,3.4012]
[1727861629846,21.64572,147.05,147.02,3.4012]
[1727861630049,8.58572,147.05,147.02,3.4012]
[1727861630752,0.12502,147.05,146.98,18.12]
[1727861631344,0.12502,147.05,147.03,3.4011]
[1727861631552,0.12502,147.05,146.98,18.12]
[1727861632341,0.12502,147.05,147.04,3.4009]
[1727861635560,5.26502,147.11,147.08,3.3999]
[1727861636256,5.26502,147.11,147.07,3.4]
[1727861636457,5.26502,147.11,147.04,13.06]
[1727861636756,3.3996,147.1,147.04,13.06]
[1727861637150,8.66442,147.11,147.08,3.3998]
[1727861639965,3.3996,147.1,147.08,3.3998]
[1727861640660,3.4,147.08,147.06,3.4003]
[1727861640861,3.4,147.08,147.04,1.3305]
[1727861641167,18.32502,147.11,147.04,1.3305]
[1727861641462,3.3999,147.09,147.06,3.4003]
[1727861641851,3.4006,147.06,147.03,6.0651]
[1727861642056,13.06,147.09,147.03,2.6641]
[1727861642465,3.4003,147.07,147.04,3.4007]
[1727861643663,3.4006,147.06,147.03,3.401]
[1727861644469,3.4006,147.06,147.04,3.4009]
[1727861645060,3.4006,147.06,147.03,3.401]
[1727861645262,3.4007,147.05,147.03,3.401]
[1727861645459,13.06,147.09,147.03,3.401]
[1727861645861,3.4006,147.06,147.03,3.401]
[1727861646267,13.06,147.09,147.01,5.14]
[1727861646872,3.4003,147.07,147.05,3.4006]
[1727861647064,3.4003,147.07,147.01,5.14]
[1727861647369,13.06,147.09,147.01,5.14]
[1727861647761,3.4006,147.06,147.03,3.401]
[1727861648462,3.4006,147.06,147.04,3.4009]
[1727861648864,18.32502,147.11,147.01,18.2]
[1727861649169,5.26502,147.11,147.04,13.06]
[1727861649372,8.66442,147.11,147.04,13.06]
[1727861649567,8.66442,147.11,147.08,3.3999]
[1727861649866,0.12502,147.11,147.05,2.6536]
[1727861650070,0.12502,147.11,147.06,13.06]
[1727861650272,0.12502,147.11,147.1,3.3995]
[1727861651169,3.52442,147.11,147.06,14.358]
[1727861651566,3.52442,147.11,147.08,3.3998]
[1727861652770,0.12502,147.11,147.06,1.298]
[1727861653171,3.3998,147.09,147.06,4.6983]
[1727861653373,0.12502,147.11,147.06,4.6983]
[1727861653672,13.06,147.09,147.03,5.14]
[1727861653874,13.06,147.09,147.04,3.4008]
[1727861654466,3.4003,147.07,147.04,3.4008]
[1727861654667,13.06,147.09,147.02,3.4012]
[1727861655166,3.4008,147.05,147.02,3.4012]
[1727861656075,13.06,147.09,147.02,3.4012]
[1727861656273,13.06,147.07,147.02,3.4012]
[1727861656781,3.4006,147.06,147.03,3.4011]
[1727861657075,13.06,147.09,147.01,2.6281]
[1727861657270,3.4008,147.05,147.02,3.4012]
[1727861658174,3.4009,147.04,147.02,3.4012]
[1727861658976,13.06,147.07,147.02,3.4012]
[1727861659272,3.4008,147.05,147.02,3.4012]
[1727861659473,13.06,147.07,147.04,3.4007]
[1727861659873,3.4004,147.07,147.01,2.6281]
[1727861660080,5.14,147.09,147.01,2.6281]
[1727861660375,7.86500238,147.08,147.01,2.6281]
[1727861660576,3.4001,147.08,147.01,2.6281]
[1727861660779,3.4001,147.08,147.05,3.4005]
[1727861663479,3.4001,147.08,147.06,3.4004]
[1727861663672,3.4003,147.07,147.01,2.6281]
[1727861663974,4.46818021,147.06,147.01,2.6281]
[1727861664178,13.06,147.09,147.03,3.4009]
[1727861664476,13.06,147.07,147.0,1.2815]
[1727861664679,4.46903026,147.06,147.0,1.2815]
[1727861664879,13.06,147.07,147.0,1.2815]
[1727861665081,3.4007,147.05,147.0,1.2815]
[1727861665481,13.06,147.07,147.0,1.2815]
[1727861665777,9.56944652,147.06,147.01,3.4014]
[1727861665986,4.46944652,147.05,147.01,3.4014]
[1727861666279,5.1,147.06,147.01,3.4014]
[1727861666481,3.4009,147.04,147.01,3.4014]
[1727861667490,5.1,147.06,147.01,3.4014]
[1727861667682,3.4012,147.03,147.01,3.4014]
[1727861667883,5.1,147.06,147.01,3.4014]
[1727861668081,7.87015913,147.05,147.02,3.4014]
[1727861668282,4.46925913,147.04,147.02,3.4014]
[1727861668582,4.46925913,147.04,147.0,14.3415]
[1727861668785,3.4005,147.06,147.03,3.401]
[1727861668978,4.46913361,147.05,147.0,14.3415]
[1727861669178,5.1,147.08,147.0,14.3415]
[1727861669481,4.46945072,147.07,147.0,14.3415]
[1727861669683,5.1,147.09,147.0,14.3415]
[1727861669881,7.86989607,147.08,147.05,3.4005]
[1727861670179,5.1,147.09,147.02,18.16]
[1727861670484,4.47001365,147.08,147.06,3.4003]
[1727861670786,5.1,147.09,147.06,3.4003]
[1727861671079,7.87001315,147.08,147.06,3.4003]
[1727861671272,4.47001315,147.07,147.06,3.4003]
[1727861671478,4.47001315,147.08,147.02,18.16]
[1727861671676,0.12502,147.11,147.08,3.3998]
[1727861671877,3.3999,147.09,147.04,14.3961]
[1727861672675,3.3999,147.09,147.06,3.4003]
[1727861673081,0.12502,147.11,147.04,14.3961]
[1727861673082,3.52442,147.11,147.04,14.3961]
[1727861673287,4.4690079,147.1,147.04,14.3961]
[1727861673480,3.52442,147.11,147.08,3.3999]
[1727861673684,4.4688512,147.1,147.04,14.3961]
[1727861673987,0.12502,147.11,147.06,13.06]
[1727861674179,0.12502,147.11,147.06,18.16]
[1727861675687,0.12502,147.11,147.1,3.3995]
[1727861675881,4.59413011,147.11,147.1,3.3995]
[1727861676290,4.59413011,147.11,147.07,1.361]
[1727861676496,0.12502,147.11,147.09,3.3997]
[1727861676789,0.12502,147.11,147.07,1.361]
[1727861676988,0.12502,147.11,147.09,3.3995]
[1727861677191,0.12502,147.11,147.07,1.361]
[1727861677490,0.12502,147.11,147.08,3.3999]
[1727861677683,3.52452,147.11,147.08,3.3999]
[1727861679586,3.52452,147.11,147.09,3.3997]
[1727861680690,0.12502,147.11,147.06,13.06]
[1727861680887,3.3998,147.09,147.06,3.4003]
[1727861681288,0.12502,147.11,147.05,5.1]
[1727861681590,0.12502,147.11,147.05,18.16]
[1727861681984,3.3996,147.1,147.08,3.4]
[1727861682794,3.3996,147.1,147.07,3.4001]
[1727861682986,3.3998,147.09,147.05,5.1]
[1727861683188,13.06,147.1,147.03,2.6436]
[1727861683491,13.06,147.08,147.01,5.1]
[1727861683692,4.46604399,147.07,147.01,5.1]
[1727861683893,13.06,147.08,147.01,5.1]
[1727861684191,7.86605971,147.07,147.01,5.1]
[1727861684389,3.4004,147.07,147.01,5.1]
[1727861684590,13.06,147.08,147.02,5.1]
[1727861684791,3.4003,147.07,147.02,5.1]
[1727861684987,7.86588429,147.07,147.04,3.4007]
[1727861685186,3.4003,147.07,147.04,3.4007]
[1727861687899,3.4003,147.07,147.05,3.4006]
[1727861688197,13.06,147.08,147.02,5.1]
[1727861688198,3.4005,147.06,147.02,5.1]
[1727861688588,3.4005,147.06,147.03,3.4009]
[1727861688994,3.4005,147.06,147.02,5.1]
[1727861689196,3.4005,147.06,147.04,3.4009]
[1727861691194,13.06,147.08,147.04,3.4009]
[1727861691393,13.06,147.08,147.05,3.4005]
[1727861691394,3.4001,147.08,147.05,3.4005]
[1727861691595,4.46797472,147.07,147.02,5.1]
[1727861691804,2.6493,147.1,147.02,5.1]
[1727861691995,2.6493,147.1,147.04,3.4008]
[1727861691996,3.4004,147.07,147.04,3.4008]
[1727861692191,4.46781243,147.06,147.04,3.4008]
[1727861694209,3.4004,147.07,147.04,3.4008]
[1727861694507,4.47092566,147.06,147.04,3.4008]
[1727861694707,3.4004,147.07,147.04,3.4008]
[1727861694901,4.47089772,147.06,147.04,3.4008]
[1727861695098,3.4004,147.07,147.04,3.4008]
[1727861695295,4.47139831,147.06,147.04,3.4008]
[1727861695507,3.4004,147.07,147.04,3.4008]
[1727861695709,4.47138177,147.06,147.04,3.4008]
[1727861695916,3.4004,147.07,147.04,3.4008]
[1727861696105,4.4713777,147.06,147.04,3.4008]
[1727861696407,3.4004,147.07,147.04,3.4008]
[1727861696604,4.4727634,147.06,147.04,3.4008]
[1727861696806,3.4004,147.07,147.04,3.4008]
[1727861697101,4.47273982,147.06,147.04,3.4008]
[1727861697305,4.47358664,147.05,147.04,3.4008]
[1727861697702,4.47358664,147.05,147.02,5.1]
[1727861698011,3.4006,147.06,147.03,3.401]
[1727861698213,4.47447239,147.05,147.03,3.401]
[1727861698407,3.4006,147.06,147.03,3.401]
[1727861698609,4.4745381,147.05,147.03,3.401]
[1727861698910,3.4006,147.06,147.03,3.401]
[1727861699112,4.47453809,147.05,147.03,3.401]
[1727861699310,3.4003,147.07,147.04,3.4009]
[1727861699506,4.47540897,147.06,147.04,3.4009]
[1727861699711,4.47540897,147.05,147.04,3.4009]
[1727861700106,3.401,147.04,147.0,3.4016]
[1727861700315,16.51008654,147.09,147.0,5.1]
[1727861700316,4.47525155,147.03,147.0,5.1]
[1727861700503,13.06,147.09,147.0,5.1]
[1727861700709,3.4013,147.03,147.01,3.4016]
[1727861700909,4.475077,147.08,147.01,3.4016]
[1727861701117,4.47533048,147.07,147.01,3.4016]
[1727861701313,3.401,147.04,147.01,3.4016]
[1727861701510,4.47533048,147.03,147.01,3.4016]
[1727861701706,13.06,147.06,147.0,3.4017]
[1727861701913,3.4013,147.03,147.0,3.4017]
[1727861702426,3.4017,147.01,146.99,0.12502]
[1727861702916,4.47281846,147.0,146.99,3.52702]
[1727861703313,5.1,147.03,146.99,0.12502]
[1727861703516,4.47204738,147.02,146.99,0.12502]
[1727861703717,4.47204738,147.01,146.99,0.12502]
[1727861703913,4.47204738,147.0,146.99,0.12502]
[1727861704712,3.4028,146.96,146.93,3.52842]
[1727861704916,3.4028,146.96,146.93,0.12502]
[1727861705216,3.4032,146.94,146.93,0.12502]
[1727861705917,3.4031,146.95,146.93,0.12502]
[1727861706216,13.06,146.97,146.93,0.12502]
[1727861706417,3.4032,146.94,146.93,0.12502]
[1727861706720,7.86455686,146.94,146.93,0.12502]
[1727861707017,3.4041,146.91,146.87,3.52982]
[1727861707218,5.1,146.95,146.87,0.12502]
[1727861707523,4.45670993,146.94,146.87,0.12502]
[1727861707720,3.4038,146.92,146.88,3.4045]
[1727861707918,13.06,146.92,146.87,0.12502]
[1727861708116,3.4046,146.88,146.87,0.12502]